[Event "44th Chess Olympiad Open 2022"]
[Site "Chennai"]
[Date "2022.08.08"]
[Round "10.57"]
[White "Eichab, Charles"]
[Black "Tapia Ostolaza, Alexei"]
[Result "1-0"]
[WhiteElo "2048"]
[BlackElo "2201"]
[Annotator "RC"]
[PlyCount "99"]
[EventDate "2022.??.??"]
[TimeControl "60"]

1. c4 {[%emt 0:00:37]} Nf6 {[%emt 0:00:16]} 2. Nc3 {[%emt 0:00:09]} c5 {
[%emt 0:01:07]} 3. Nf3 {[%emt 0:00:23]} Nc6 {[%emt 0:00:44]} 4. d4 {[%emt 0:00:
00]} cxd4 {[%emt 0:01:05]} 5. Nxd4 {[%emt 0:00:09]} g6 {[%emt 0:00:46]} 6. g3 {
[%emt 0:00:56]} Bg7 {[%emt 0:01:04]} 7. Bg2 {[%emt 0:02:16]} O-O {[%emt 0:00:
00]} 8. O-O {[%emt 0:01:17]} a6 {[%emt 0:03:54]} 9. e3 {[%emt 0:03:23]} Rb8 {
[%emt 0:03:44]} 10. b3 {[%emt 0:17:53]} Nxd4 {[%emt 0:03:47]} 11. exd4 {
[%emt 0:01:04]} d6 {[%emt 0:03:43]} 12. a4 {[%emt 0:03:40]} Bg4 {[%emt 0:04:18]
} 13. Qd2 {[%emt 0:03:30]} Qd7 {[%emt 0:02:36]} 14. Re1 {[%emt 0:01:47]} Rfe8 {
[%emt 0:01:12]} 15. d5 {[%emt 0:09:23]} Bh3 {[%emt 0:09:10]} 16. Bh1 {[%emt 0:
00:00]} Qf5 {[%emt 0:00:49]} 17. Bb2 {[%emt 0:03:04]} Nd7 {[%emt 0:05:37]} 18.
Ne4 {[%emt 0:04:29]} Bxb2 {[%emt 0:01:11]} 19. Qxb2 {[%emt 0:01:34]} Ne5 {
[%emt 0:01:44]} 20. Qc3 {[%emt 0:01:59]} Bg4 {[%emt 0:08:25]} 21. f4 {[%emt 0:
00:00]} Nd7 {[%emt 0:01:35]} 22. Re3 {[%emt 0:01:34]} Nf6 {[%emt 0:05:08]} 23.
Rae1 {[%emt 0:14:50]} Nxe4 {[%emt 0:00:44]} 24. Rxe4 {[%emt 0:02:23]} Qd7 {
[%emt 0:00:22]} 25. Qe3 {[%emt 0:00:18]} Kf8 {[%emt 0:01:10]} 26. Qd4 {[%emt 0:
00:00]} Kg8 {[%emt 0:01:08]} 27. Qe3 {[%emt 0:00:47]} Kf8 {[%emt 0:00:55]} 28.
f5 {[%emt 0:09:13]} gxf5 {[%emt 0:12:27]} 29. Qh6+ {[%emt 0:02:19]} Kg8 {
[%emt 0:00:02]} 30. Qg5+ {[%emt 0:03:53]} Kf8 {[%emt 0:00:14]} 31. Qh6+ {
[%emt 0:04:59]} Kg8 {[%emt 0:00:01]} 32. R4e3 {[%emt 0:01:52]} Kh8 {[%emt 0:00:
00]} 33. Bg2 {[%emt 0:00:29]} f6 {[%emt 0:01:13]} 34. h3 {[%emt 0:00:40]} f4 {
[%emt 0:00:17]} 35. Qxf4 {[%emt 0:00:30]} Bf5 {[%emt 0:01:01]} 36. g4 {[%emt 0:
00:00]} Bg6 {[%emt 0:00:11]} 37. Bf3 {[%emt 0:00:29]} b5 {[%emt 0:00:14]} 38.
Kh2 {[%emt 0:00:17]} bxa4 {[%emt 0:00:17]} 39. bxa4 {[%emt 0:00:25]} Rb4 {
[%emt 0:04:35]} 40. g5 {[%emt 0:00:40]} fxg5 {[%emt 0:02:14]} 41. Qd4+ {
[%emt 0:13:28]} Kg8 {[%emt 0:00:37]} 42. Bg4 {[%emt 0:02:32]} Bf5 {[%emt 0:00:
00]} 43. Bh5 {[%emt 0:00:39]} Rb7 {[%emt 0:04:42]} 44. Bxe8 {[%emt 0:02:51]}
Qxe8 {[%emt 0:00:02]} 45. c5 {[%emt 0:07:08]} dxc5 {[%emt 0:01:12]} 46. Qe5 {
[%emt 0:02:04]} Qd7 {[%emt 0:02:34]} 47. Rf1 {[%emt 0:00:39]} Bg6 {[%emt 0:00:
00]} 48. Ref3 {[%emt 0:01:19]} Qd8 {[%emt 0:00:44]} 49. d6 {[%emt 0:01:33]}
exd6 {[%emt 0:00:50]} 50. Qd5+ {[%emt 0:00:50]} 1-0

[Event "44th Chess Olympiad Open 2022"]
[Site "Chennai"]
[Date "2022.08.08"]
[Round "10.57"]
[White "Khoa, Goodwill"]
[Black "Delgado Rosas, Alex Antonio"]
[Result "0-1"]
[WhiteElo "1850"]
[BlackElo "2149"]
[Annotator "NA RC"]
[PlyCount "112"]
[EventDate "2022.??.??"]
[TimeControl "60"]

1. d4 {[%emt 0:00:03]} Nf6 {[%emt 0:00:05]} 2. c4 {[%emt 0:00:11]} c5 {[%emt 0:
00:00]} 3. d5 {[%emt 0:01:51]} b5 {[%emt 0:00:08]} 4. cxb5 {[%emt 0:02:35]} a6
{[%emt 0:00:06]} 5. e3 {[%emt 0:01:15]} axb5 {[%emt 0:06:28]} 6. Bxb5 {[%emt 0:
00:00]} g6 {[%emt 0:01:25]} 7. Nc3 {[%emt 0:04:18]} Bg7 {[%emt 0:00:07]} 8.
Nge2 {[%emt 0:00:17]} O-O {[%emt 0:00:14]} 9. O-O {[%emt 0:00:04]} Bb7 {
[%emt 0:01:03]} 10. e4 {[%emt 0:05:27]} d6 {[%emt 0:00:08]} 11. Ng3 {[%emt 0:
00:00]} Qb6 {[%emt 0:01:51]} 12. Qb3 {[%emt 0:04:59]} Na6 {[%emt 0:03:06]} 13.
Bc4 {[%emt 0:05:10]} Nd7 {[%emt 0:01:23]} 14. Bg5 {[%emt 0:01:15]} f6 {[%emt 0:
00:00]} 15. Be3 {[%emt 0:00:52]} Qxb3 {[%emt 0:02:40]} 16. Bxb3 {[%emt 0:00:37]
} Nc7 {[%emt 0:00:10]} 17. f4 {[%emt 0:02:26]} Ba6 {[%emt 0:00:34]} 18. Rf2 {
[%emt 0:01:58]} Rab8 {[%emt 0:01:26]} 19. f5 {[%emt 0:03:44]} Ne5 {[%emt 0:00:
00]} 20. Rd2 {[%emt 0:05:53]} Ng4 {[%emt 0:02:57]} 21. Nd1 {[%emt 0:01:10]}
Nxe3 {[%emt 0:08:42]} 22. Nxe3 {[%emt 0:00:19]} Bh6 {[%emt 0:00:08]} 23. Kf2 {
[%emt 0:00:14]} Rb4 {[%emt 0:03:43]} 24. Bd1 {[%emt 0:00:34]} Rfb8 {[%emt 0:00:
00]} 25. b3 {[%emt 0:00:38]} R4b7 {[%emt 0:19:40]} 26. Be2 {[%emt 0:02:45]} Ra7
{[%emt 0:00:29]} 27. Bxa6 {[%emt 0:10:45]} Rxa6 {[%emt 0:02:50]} 28. Rb2 {
[%emt 0:03:38]} Nb5 {[%emt 0:07:09]} 29. Nc4 {[%emt 0:02:30]} Nd4 {[%emt 0:00:
00]} 30. fxg6 {[%emt 0:00:16]} hxg6 {[%emt 0:00:07]} 31. Ne2 {[%emt 0:00:11]}
Nxe2 {[%emt 0:03:49]} 32. Kxe2 {[%emt 0:02:06]} f5 {[%emt 0:00:06]} 33. Rf1 {
[%emt 0:01:10]} fxe4 {[%emt 0:00:53]} 34. Rc2 {[%emt 0:03:10]} e6 {[%emt 0:00:
00]} 35. Rf6 {[%emt 0:01:22]} exd5 {[%emt 0:00:23]} 36. Rxg6+ {[%emt 0:00:09]}
Kh7 {[%emt 0:01:36]} 37. Rxd6 {[%emt 0:00:10]} Rxd6 {[%emt 0:02:26]} 38. Nxd6 {
[%emt 0:00:01]} Rb6 {[%emt 0:02:04]} 39. Nf5 {[%emt 0:00:30]} Bf8 {[%emt 0:00:
00]} 40. Ke3 {[%emt 0:01:24]} Re6 {[%emt 0:01:08]} 41. g4 {[%emt 0:30:54]} d4+
{[%emt 0:30:48]} 42. Kd2 {[%emt 0:02:37]} Ra6 {[%emt 0:01:31]} 43. h4 {[%emt 0:
00:00]} Kg6 {[%emt 0:00:00]} 44. Kd1 {[%emt 0:00:00]} Kf6 {[%emt 0:00:00]} 45.
Rh2 {[%emt 0:00:00]} e3 {[%emt 0:00:00]} 46. a4 {[%emt 0:00:00]} Ke5 {[%emt 0:
00:00]} 47. h5 {[%emt 0:00:00]} c4 {[%emt 0:00:00]} 48. Re2 {[%emt 0:08:09]}
Ke4 {[%emt 0:00:00]} 49. Rh2 {[%emt 0:14:35]} cxb3 {[%emt 0:00:00]} 50. h6 {
[%emt 0:01:03]} Rxa4 {[%emt 0:00:00]} 51. Ng3+ {[%emt 0:00:48]} Kd3 {[%emt 0:
00:00]} 52. Ne2 {[%emt 0:00:14]} b2 {[%emt 0:00:42]} 53. Nc1+ {[%emt 0:02:40]}
bxc1=Q+ {[%emt 0:00:21]} 54. Kxc1 {[%emt 0:00:12]} Rc4+ {[%emt 0:01:08]} 55.
Kb2 {[%emt 0:01:14]} e2 {[%emt 0:01:20]} 56. Rh1 {[%emt 0:00:29]} Bxh6 {
[%emt 0:00:23]} 0-1

[Event "44th Chess Olympiad Open 2022"]
[Site "Chennai"]
[Date "2022.08.08"]
[Round "10.58"]
[White "Abdulwahhab, Ahmed Abdulsattar A"]
[Black "Attalib, Osama A."]
[Result "0-1"]
[WhiteElo "2251"]
[BlackElo "2033"]
[Annotator "RC"]
[PlyCount "116"]
[EventDate "2022.??.??"]
[TimeControl "60"]

1. e4 {[%emt 0:00:06]} e5 {[%emt 0:00:12]} 2. Nf3 {[%emt 0:00:39]} Nc6 {
[%emt 0:00:16]} 3. Bc4 {[%emt 0:01:34]} Nf6 {[%emt 0:00:08]} 4. d3 {[%emt 0:00:
00]} Bc5 {[%emt 0:00:13]} 5. c3 {[%emt 0:00:35]} d6 {[%emt 0:00:29]} 6. O-O {
[%emt 0:00:47]} a6 {[%emt 0:01:16]} 7. Bb3 {[%emt 0:01:10]} O-O {[%emt 0:00:15]
} 8. Re1 {[%emt 0:03:21]} Ba7 {[%emt 0:00:40]} 9. Nbd2 {[%emt 0:02:51]} Ng4 {
[%emt 0:03:29]} 10. Re2 {[%emt 0:00:29]} Kh8 {[%emt 0:00:27]} 11. h3 {[%emt 0:
00:00]} Nh6 {[%emt 0:00:53]} 12. Nf1 {[%emt 0:02:53]} f5 {[%emt 0:00:25]} 13.
Bg5 {[%emt 0:04:29]} Qe8 {[%emt 0:04:16]} 14. Bxh6 {[%emt 0:04:17]} gxh6 {
[%emt 0:00:58]} 15. d4 {[%emt 0:02:57]} fxe4 {[%emt 0:15:51]} 16. Rxe4 {
[%emt 0:00:19]} Bf5 {[%emt 0:09:16]} 17. Re1 {[%emt 0:04:56]} Qd8 {[%emt 0:00:
00]} 18. dxe5 {[%emt 0:09:26]} Nxe5 {[%emt 0:23:47]} 19. Nxe5 {[%emt 0:00:51]}
dxe5 {[%emt 0:23:48]} 20. Qxd8 {[%emt 0:00:38]} Raxd8 {[%emt 0:00:06]} 21. Rxe5
{[%emt 0:05:36]} Bg6 {[%emt 0:00:23]} 22. Re2 {[%emt 0:02:09]} Rxf2 {[%emt 0:
00:00]} 23. Rxf2 {[%emt 0:02:47]} Rf8 {[%emt 0:00:07]} 24. Ng3 {[%emt 0:07:56]}
Rxf2 {[%emt 0:00:21]} 25. Kh2 {[%emt 0:00:57]} Bc5 {[%emt 0:02:19]} 26. h4 {
[%emt 0:00:56]} Bd6 {[%emt 0:00:24]} 27. Kh3 {[%emt 0:00:29]} h5 {[%emt 0:00:
00]} 28. Bd5 {[%emt 0:02:00]} Rxb2 {[%emt 0:01:18]} 29. Rf1 {[%emt 0:03:14]}
Rd2 {[%emt 0:03:03]} 30. Bxb7 {[%emt 0:00:47]} Rxa2 {[%emt 0:00:08]} 31. Bf3 {
[%emt 0:05:23]} a5 {[%emt 0:01:13]} 32. Bxh5 {[%emt 0:00:54]} Bxg3 {[%emt 0:00:
00]} 33. Bxg6 {[%emt 0:00:09]} Be5 {[%emt 0:00:29]} 34. Rf5 {[%emt 0:03:11]}
Re2 {[%emt 0:00:38]} 35. Bh5 {[%emt 0:01:56]} Re3+ {[%emt 0:00:02]} 36. Bf3 {
[%emt 0:00:08]} Kg7 {[%emt 0:00:48]} 37. Kg4 {[%emt 0:00:39]} a4 {[%emt 0:00:
00]} 38. Bd5 {[%emt 0:00:20]} Rg3+ {[%emt 0:00:43]} 39. Kh5 {[%emt 0:00:12]}
Bf6 {[%emt 0:00:07]} 40. Rf4 {[%emt 0:00:59]} Rxc3 {[%emt 0:00:51]} 41. g4 {
[%emt 0:35:10]} Rc5 {[%emt 0:14:30]} 42. Rf5 {[%emt 0:00:00]} c6 {[%emt 0:00:
00]} 43. g5 {[%emt 0:00:00]} Rxd5 {[%emt 0:00:36]} 44. Rxf6 {[%emt 0:00:00]}
Ra5 {[%emt 0:07:23]} 45. Rxc6 {[%emt 0:00:00]} a3 {[%emt 0:00:06]} 46. Rc7+ {
[%emt 0:00:00]} Kg8 {[%emt 0:00:31]} 47. Rc8+ {[%emt 0:00:00]} Kg7 {[%emt 0:00:
00]} 48. Rc7+ {[%emt 0:00:00]} Kf8 {[%emt 0:00:29]} 49. Rc8+ {[%emt 0:00:00]}
Ke7 {[%emt 0:00:26]} 50. Rc7+ {[%emt 0:00:00]} Ke6 {[%emt 0:00:14]} 51. Rc1 {
[%emt 0:00:00]} a2 {[%emt 0:00:14]} 52. Kh6 {[%emt 0:05:23]} a1=Q {[%emt 0:00:
00]} 53. Rxa1 {[%emt 0:00:11]} Rxa1 {[%emt 0:00:07]} 54. Kxh7 {[%emt 0:00:09]}
Rh1 {[%emt 0:00:12]} 55. g6 {[%emt 0:00:21]} Rxh4+ {[%emt 0:02:01]} 56. Kg8 {
[%emt 0:00:10]} Kf6 {[%emt 0:01:07]} 57. g7 {[%emt 0:00:05]} Rg4 {[%emt 0:00:
00]} 58. Kh8 {[%emt 0:00:08]} Kf7 {[%emt 0:00:08]} 0-1

[Event "44th Chess Olympiad Open 2022"]
[Site "Chennai"]
[Date "2022.08.08"]
[Round "10.58"]
[White "Alhassadi, Yousef A."]
[Black "Ahmed, Ali Layth Ahmed"]
[Result "1/2-1/2"]
[WhiteElo "2068"]
[BlackElo "2249"]
[Annotator "RC"]
[PlyCount "207"]
[EventDate "2022.??.??"]
[TimeControl "60"]

1. e4 {[%emt 0:00:06]} c6 {[%emt 0:00:07]} 2. Nf3 {[%emt 0:00:22]} d5 {[%emt 0:
00:00]} 3. Nc3 {[%emt 0:00:03]} dxe4 {[%emt 0:01:58]} 4. Nxe4 {[%emt 0:00:16]}
Nf6 {[%emt 0:00:01]} 5. Qe2 {[%emt 0:01:27]} Na6 {[%emt 0:00:33]} 6. Nxf6+ {
[%emt 0:02:20]} gxf6 {[%emt 0:00:03]} 7. g3 {[%emt 0:02:00]} Bf5 {[%emt 0:00:
00]} 8. d3 {[%emt 0:00:09]} Qd7 {[%emt 0:00:38]} 9. h3 {[%emt 0:10:59]} Bg7 {
[%emt 0:04:18]} 10. Bg2 {[%emt 0:01:19]} Nc7 {[%emt 0:00:45]} 11. Nh4 {[%emt 0:
00:00]} Be6 {[%emt 0:03:11]} 12. Bd2 {[%emt 0:01:30]} Rd8 {[%emt 0:13:41]} 13.
Qh5 {[%emt 0:15:45]} Bd5 {[%emt 0:17:05]} 14. O-O {[%emt 0:12:19]} Bxg2 {
[%emt 0:01:04]} 15. Nxg2 {[%emt 0:01:50]} Ne6 {[%emt 0:02:58]} 16. Ne3 {
[%emt 0:05:16]} Bf8 {[%emt 0:05:30]} 17. h4 {[%emt 0:04:50]} Qd4 {[%emt 0:00:
00]} 18. Bc3 {[%emt 0:02:34]} Qc5 {[%emt 0:00:31]} 19. Qxc5 {[%emt 0:02:58]}
Nxc5 {[%emt 0:00:02]} 20. a4 {[%emt 0:00:54]} Rg8 {[%emt 0:03:19]} 21. Rfe1 {
[%emt 0:01:15]} Kd7 {[%emt 0:02:48]} 22. Kg2 {[%emt 0:04:05]} Kc8 {[%emt 0:00:
00]} 23. Re2 {[%emt 0:08:27]} Nd7 {[%emt 0:01:02]} 24. Nc4 {[%emt 0:03:29]} e6
{[%emt 0:01:01]} 25. Kf3 {[%emt 0:00:24]} f5 {[%emt 0:00:48]} 26. Ne5 {[%emt 0:
00:00]} Nxe5+ {[%emt 0:00:11]} 27. Bxe5 {[%emt 0:00:08]} Be7 {[%emt 0:02:12]}
28. Bc3 {[%emt 0:01:55]} Rg4 {[%emt 0:01:03]} 29. b3 {[%emt 0:04:37]} h5 {
[%emt 0:01:22]} 30. Bd2 {[%emt 0:02:59]} Bd6 {[%emt 0:04:25]} 31. Bg5 {[%emt 0:
00:00]} Rg8 {[%emt 0:00:05]} 32. Rae1 {[%emt 0:01:17]} Kd7 {[%emt 0:03:07]} 33.
Rh1 {[%emt 0:01:59]} Rg6 {[%emt 0:01:30]} 34. Be3 {[%emt 0:00:52]} a6 {[%emt 0:
00:00]} 35. c3 {[%emt 0:00:45]} f4 {[%emt 0:02:46]} 36. gxf4 {[%emt 0:00:51]}
Rf6 {[%emt 0:04:36]} 37. Ke4 {[%emt 0:00:17]} Rfg6 {[%emt 0:02:15]} 38. Kf3 {
[%emt 0:00:40]} Be7 {[%emt 0:01:03]} 39. Ree1 {[%emt 0:00:21]} Bd6 {[%emt 0:00:
00]} 40. Re2 {[%emt 0:00:34]} Rf6 {[%emt 0:00:32]} 41. Ke4 {[%emt 0:30:06]} Rh6
{[%emt 0:02:26]} 42. d4 {[%emt 0:00:00]} Be7 {[%emt 0:01:11]} 43. Ree1 {
[%emt 0:00:00]} f5+ {[%emt 0:01:07]} 44. Kd3 {[%emt 0:00:00]} Rxh4 {[%emt 0:00:
00]} 45. Rxh4 {[%emt 0:00:00]} Bxh4 {[%emt 0:00:02]} 46. c4 {[%emt 0:00:00]}
Be7 {[%emt 0:00:32]} 47. c5 {[%emt 0:00:00]} a5 {[%emt 0:03:25]} 48. Rg1 {
[%emt 0:00:00]} h4 {[%emt 0:00:31]} 49. Ke2 {[%emt 0:00:00]} Bf6 {[%emt 0:00:
00]} 50. Kf3 {[%emt 0:01:56]} Ke7 {[%emt 0:01:07]} 51. Kg2 {[%emt 0:03:05]} Rh8
{[%emt 0:03:51]} 52. Kh3 {[%emt 0:00:36]} Rd8 {[%emt 0:00:50]} 53. Rd1 {
[%emt 0:00:07]} Kf7 {[%emt 0:00:35]} 54. Rd3 {[%emt 0:01:01]} Kg6 {[%emt 0:00:
00]} 55. f3 {[%emt 0:00:38]} Kh5 {[%emt 0:01:30]} 56. Bf2 {[%emt 0:00:05]} Kg6
{[%emt 0:01:48]} 57. Rd1 {[%emt 0:00:18]} Kf7 {[%emt 0:00:21]} 58. Rd2 {
[%emt 0:00:49]} Be7 {[%emt 0:00:19]} 59. Re2 {[%emt 0:00:25]} Bf6 {[%emt 0:00:
00]} 60. Rd2 {[%emt 0:00:05]} e5 {[%emt 0:05:56]} 61. fxe5 {[%emt 0:00:25]}
Bxe5 {[%emt 0:00:01]} 62. Bxh4 {[%emt 0:01:30]} Rxd4 {[%emt 0:00:12]} 63. Rxd4
{[%emt 0:00:11]} Bxd4 {[%emt 0:00:02]} 64. Bd8 {[%emt 0:00:15]} Bc3 {[%emt 0:
00:00]} 65. Kg3 {[%emt 0:00:42]} Ke6 {[%emt 0:00:30]} 66. Kh4 {[%emt 0:00:47]}
Bd2 {[%emt 0:01:35]} 67. Kh5 {[%emt 0:00:29]} Kd5 {[%emt 0:01:31]} 68. Bb6 {
[%emt 0:00:03]} Kd4 {[%emt 0:02:06]} 69. Kg6 {[%emt 0:00:23]} f4 {[%emt 0:00:
00]} 70. Kf5 {[%emt 0:00:34]} Kd3 {[%emt 0:00:13]} 71. Bc7 {[%emt 0:00:46]} Kc2
{[%emt 0:00:27]} 72. Bxf4 {[%emt 0:00:04]} Bb4 {[%emt 0:00:27]} 73. Ke6 {
[%emt 0:01:16]} Bxc5 {[%emt 0:02:52]} 74. Bc7 {[%emt 0:00:08]} Kxb3 {[%emt 0:
00:00]} 75. f4 {[%emt 0:00:44]} Kxa4 {[%emt 0:00:18]} 76. f5 {[%emt 0:00:03]}
Kb5 {[%emt 0:00:52]} 77. f6 {[%emt 0:00:05]} a4 {[%emt 0:01:22]} 78. Bd6 {
[%emt 0:01:31]} Bxd6 {[%emt 0:01:36]} 79. Kxd6 {[%emt 0:00:06]} a3 {[%emt 0:00:
00]} 80. f7 {[%emt 0:00:06]} a2 {[%emt 0:00:02]} 81. f8=Q {[%emt 0:00:06]} a1=Q
{[%emt 0:00:05]} 82. Qf5+ {[%emt 0:00:10]} Kb6 {[%emt 0:02:25]} 83. Qf2+ {
[%emt 0:00:07]} Ka6 {[%emt 0:00:34]} 84. Qe2+ {[%emt 0:00:10]} Ka5 {[%emt 0:00:
00]} 85. Qd2+ {[%emt 0:00:05]} Kb5 {[%emt 0:00:19]} 86. Qd3+ {[%emt 0:00:52]}
Kb4 {[%emt 0:00:11]} 87. Qe4+ {[%emt 0:00:16]} Kb3 {[%emt 0:00:17]} 88. Qe6+ {
[%emt 0:00:17]} Ka3 {[%emt 0:01:05]} 89. Qe3+ {[%emt 0:00:16]} Kb4 {[%emt 0:00:
00]} 90. Qc5+ {[%emt 0:02:33]} Kb3 {[%emt 0:00:04]} 91. Qb6+ {[%emt 0:00:27]}
Kc4 {[%emt 0:00:04]} 92. Qc5+ {[%emt 0:01:19]} Kd3 {[%emt 0:00:09]} 93. Qf5+ {
[%emt 0:00:04]} Kd2 {[%emt 0:00:20]} 94. Qf2+ {[%emt 0:00:07]} Kd3 {[%emt 0:00:
00]} 95. Qf5+ {[%emt 0:00:20]} Ke3 {[%emt 0:00:52]} 96. Qg5+ {[%emt 0:00:11]}
Kf3 {[%emt 0:00:27]} 97. Qf5+ {[%emt 0:00:10]} Ke3 {[%emt 0:01:16]} 98. Qg5+ {
[%emt 0:00:08]} Ke4 {[%emt 0:00:23]} 99. Qg4+ {[%emt 0:00:12]} Kd3 {[%emt 0:00:
00]} 100. Qf5+ {[%emt 0:00:04]} Kd2 {[%emt 0:01:20]} 101. Qf2+ {[%emt 0:00:06]}
Kd3 {[%emt 0:00:33]} 102. Qf5+ {[%emt 0:00:05]} Kc4 {[%emt 0:00:17]} 103. Qc5+
{[%emt 0:00:09]} Kb3 {[%emt 0:00:10]} 104. Qb6+ {[%emt 0:00:07]} 1/2-1/2

[Event "44th Chess Olympiad Open 2022"]
[Site "Chennai"]
[Date "2022.08.08"]
[Round "10.58"]
[White "Abugenda, Nagi"]
[Black "Rabeea, Sabah Nori"]
[Result "1-0"]
[WhiteElo "1991"]
[BlackElo "2122"]
[Annotator "NA RC"]
[PlyCount "70"]
[EventDate "2022.??.??"]
[TimeControl "60"]

1. e4 {[%emt 0:00:19]} e5 {[%emt 0:00:13]} 2. Bc4 {[%emt 0:00:08]} Nf6 {
[%emt 0:02:10]} 3. d3 {[%emt 0:00:08]} d5 {[%emt 0:04:52]} 4. exd5 {[%emt 0:00:
00]} Nxd5 {[%emt 0:00:11]} 5. Nf3 {[%emt 0:01:03]} Nc6 {[%emt 0:09:13]} 6. h3 {
[%emt 0:06:40]} Bc5 {[%emt 0:02:03]} 7. O-O {[%emt 0:04:39]} O-O {[%emt 0:00:
00]} 8. c3 {[%emt 0:02:12]} Qd6 {[%emt 0:10:46]} 9. b4 {[%emt 0:02:57]} Ndxb4 {
[%emt 0:02:11]} 10. cxb4 {[%emt 0:01:06]} Bd4 {[%emt 0:01:12]} 11. Nxd4 {
[%emt 0:01:33]} Qxd4 {[%emt 0:00:18]} 12. Qd2 {[%emt 0:10:20]} Rd8 {[%emt 0:00:
00]} 13. Bb2 {[%emt 0:01:23]} Qh4 {[%emt 0:01:10]} 14. Qe3 {[%emt 0:02:00]} Rd6
{[%emt 0:03:54]} 15. f4 {[%emt 0:32:00]} e4 {[%emt 0:10:35]} 16. dxe4 {[%emt 0:
00:00]} Rg6 {[%emt 0:01:32]} 17. f5 {[%emt 0:02:53]} Rg5 {[%emt 0:15:03]} 18.
Nd2 {[%emt 0:04:03]} Qh6 {[%emt 0:05:30]} 19. Rae1 {[%emt 0:03:13]} Nxb4 {
[%emt 0:03:41]} 20. Nf3 {[%emt 0:01:41]} Rh5 {[%emt 0:01:36]} 21. Qxh6 {
[%emt 0:00:25]} Rxh6 {[%emt 0:00:29]} 22. Rd1 {[%emt 0:02:23]} Kf8 {[%emt 0:00:
00]} 23. Rd8+ {[%emt 0:00:48]} Ke7 {[%emt 0:00:02]} 24. Rfd1 {[%emt 0:01:41]}
c5 {[%emt 0:00:02]} 25. Bxg7 {[%emt 0:01:35]} Nc6 {[%emt 0:03:20]} 26. Rxc8 {
[%emt 0:01:15]} Rxc8 {[%emt 0:00:08]} 27. Bxh6 {[%emt 0:00:11]} a6 {[%emt 0:00:
00]} 28. e5 {[%emt 0:01:23]} b5 {[%emt 0:00:23]} 29. Bd5 {[%emt 0:00:31]} Nb4 {
[%emt 0:00:13]} 30. Bg5+ {[%emt 0:00:40]} Ke8 {[%emt 0:00:23]} 31. e6 {[%emt 0:
00:00]} fxe6 {[%emt 0:00:23]} 32. fxe6 {[%emt 0:00:18]} c4 {[%emt 0:00:19]} 33.
e7 {[%emt 0:00:30]} Nd3 {[%emt 0:00:47]} 34. Bb7 {[%emt 0:00:51]} Rc5 {[%emt 0:
00:00]} 35. Be4 {[%emt 0:01:19]} h6 {[%emt 0:00:21]} 1-0

[Event "44th Chess Olympiad Open 2022"]
[Site "Chennai"]
[Date "2022.08.08"]
[Round "10.59"]
[White "Blackman, Justin"]
[Black "Miguel, Sergio"]
[Result "1/2-1/2"]
[WhiteElo "2195"]
[BlackElo "2274"]
[Annotator "NA RC"]
[PlyCount "60"]
[EventDate "2022.??.??"]
[TimeControl "60"]

1. e4 {[%emt 0:00:05]} e5 {[%emt 0:00:16]} 2. Nf3 {[%emt 0:00:06]} Nc6 {
[%emt 0:00:04]} 3. Bc4 {[%emt 0:00:06]} Nf6 {[%emt 0:00:06]} 4. d3 {[%emt 0:00:
00]} Bc5 {[%emt 0:00:51]} 5. O-O {[%emt 0:00:13]} d6 {[%emt 0:00:11]} 6. c3 {
[%emt 0:00:09]} Bb6 {[%emt 0:00:34]} 7. Re1 {[%emt 0:01:24]} h6 {[%emt 0:05:44]
} 8. Nbd2 {[%emt 0:01:00]} O-O {[%emt 0:01:13]} 9. h3 {[%emt 0:00:20]} Ne7 {
[%emt 0:01:14]} 10. Bb3 {[%emt 0:00:22]} c6 {[%emt 0:00:19]} 11. Nf1 {[%emt 0:
00:00]} Ng6 {[%emt 0:00:57]} 12. Be3 {[%emt 0:03:52]} Bxe3 {[%emt 0:05:14]} 13.
Rxe3 {[%emt 0:00:10]} Re8 {[%emt 0:06:38]} 14. Ng3 {[%emt 0:01:58]} Be6 {
[%emt 0:00:13]} 15. Bxe6 {[%emt 0:01:32]} Rxe6 {[%emt 0:00:09]} 16. d4 {
[%emt 0:00:27]} Qc7 {[%emt 0:09:43]} 17. Qa4 {[%emt 0:05:45]} Ree8 {[%emt 0:00:
00]} 18. Rd1 {[%emt 0:08:13]} a5 {[%emt 0:02:02]} 19. dxe5 {[%emt 0:05:50]}
dxe5 {[%emt 0:10:46]} 20. Red3 {[%emt 0:03:18]} Rad8 {[%emt 0:04:11]} 21. Qc4 {
[%emt 0:07:24]} Nd7 {[%emt 0:14:57]} 22. R3d2 {[%emt 0:09:11]} Nb6 {[%emt 0:00:
00]} 23. Qb3 {[%emt 0:06:14]} Rxd2 {[%emt 0:01:51]} 24. Rxd2 {[%emt 0:00:37]}
Rd8 {[%emt 0:01:01]} 25. Rxd8+ {[%emt 0:00:38]} Qxd8 {[%emt 0:00:03]} 26. c4 {
[%emt 0:00:14]} Qc7 {[%emt 0:03:21]} 27. Nf5 {[%emt 0:05:06]} Nf4 {[%emt 0:00:
00]} 28. h4 {[%emt 0:04:12]} Ne6 {[%emt 0:02:14]} 29. g3 {[%emt 0:01:03]} Nd7 {
[%emt 0:02:10]} 30. Qc3 {[%emt 0:05:57]} h5 {[%emt 0:06:37]} 1/2-1/2

[Event "44th Chess Olympiad Open 2022"]
[Site "Chennai"]
[Date "2022.08.08"]
[Round "10.59"]
[White "Dias, Vanderson"]
[Black "Edwards, Emar"]
[Result "1-0"]
[WhiteElo "2139"]
[BlackElo "1695"]
[Annotator "NA RC"]
[PlyCount "103"]
[EventDate "2022.??.??"]
[TimeControl "60"]

1. e4 {[%emt 0:00:03]} c5 {[%emt 0:00:05]} 2. Nf3 {[%emt 0:00:03]} Nc6 {
[%emt 0:00:42]} 3. d4 {[%emt 0:00:34]} cxd4 {[%emt 0:00:00]} 4. Nxd4 {[%emt 0:
00:00]} Nf6 {[%emt 0:00:02]} 5. Nc3 {[%emt 0:00:04]} e5 {[%emt 0:00:23]} 6.
Ndb5 {[%emt 0:00:50]} d6 {[%emt 0:00:06]} 7. Bg5 {[%emt 0:00:49]} a6 {[%emt 0:
00:00]} 8. Na3 {[%emt 0:00:54]} b5 {[%emt 0:00:05]} 9. Nd5 {[%emt 0:01:09]} Be7
{[%emt 0:00:04]} 10. Nxe7 {[%emt 0:01:59]} Qxe7 {[%emt 0:00:02]} 11. c4 {
[%emt 0:03:44]} b4 {[%emt 0:00:07]} 12. Nc2 {[%emt 0:00:28]} O-O {[%emt 0:00:
00]} 13. Be2 {[%emt 0:04:47]} Rd8 {[%emt 0:01:54]} 14. O-O {[%emt 0:01:57]} h6
{[%emt 0:00:03]} 15. Bxf6 {[%emt 0:00:06]} Qxf6 {[%emt 0:00:01]} 16. Qd2 {
[%emt 0:03:22]} a5 {[%emt 0:01:39]} 17. b3 {[%emt 0:00:53]} Qg6 {[%emt 0:03:04]
} 18. Rfd1 {[%emt 0:04:56]} Bb7 {[%emt 0:04:48]} 19. Bf3 {[%emt 0:01:33]} Ne7 {
[%emt 0:04:35]} 20. Qd3 {[%emt 0:01:20]} Rab8 {[%emt 0:04:37]} 21. Ne3 {
[%emt 0:10:11]} Qg5 {[%emt 0:02:08]} 22. g3 {[%emt 0:02:14]} h5 {[%emt 0:28:01]
} 23. h4 {[%emt 0:00:36]} Qh6 {[%emt 0:02:00]} 24. Nf5 {[%emt 0:01:45]} Nxf5 {
[%emt 0:00:21]} 25. exf5 {[%emt 0:00:05]} Bxf3 {[%emt 0:13:46]} 26. Qxf3 {
[%emt 0:00:07]} Rbc8 {[%emt 0:00:24]} 27. Rd5 {[%emt 0:02:28]} Rc5 {[%emt 0:00:
00]} 28. Rad1 {[%emt 0:00:07]} Rxd5 {[%emt 0:00:44]} 29. Qxd5 {[%emt 0:00:15]}
a4 {[%emt 0:04:04]} 30. Qa5 {[%emt 0:01:03]} Qf6 {[%emt 0:00:13]} 31. Qxa4 {
[%emt 0:00:47]} Qxf5 {[%emt 0:03:58]} 32. Qxb4 {[%emt 0:00:18]} Qc2 {[%emt 0:
00:00]} 33. Qd2 {[%emt 0:00:15]} Qe4 {[%emt 0:03:18]} 34. Qd3 {[%emt 0:01:46]}
Qa8 {[%emt 0:00:11]} 35. Rd2 {[%emt 0:02:13]} g6 {[%emt 0:00:41]} 36. Qd5 {
[%emt 0:00:25]} Qxd5 {[%emt 0:02:20]} 37. Rxd5 {[%emt 0:00:02]} Ra8 {[%emt 0:
00:00]} 38. a4 {[%emt 0:00:12]} Ra6 {[%emt 0:00:10]} 39. Kf1 {[%emt 0:00:35]}
Kf8 {[%emt 0:00:05]} 40. Ke2 {[%emt 0:00:02]} Ke7 {[%emt 0:00:33]} 41. Kd3 {
[%emt 0:30:29]} Ke6 {[%emt 0:31:30]} 42. Kc3 {[%emt 0:00:22]} Kf5 {[%emt 0:00:
00]} 43. a5 {[%emt 0:00:00]} f6 {[%emt 0:00:00]} 44. b4 {[%emt 0:00:00]} g5 {
[%emt 0:00:00]} 45. Kb3 {[%emt 0:00:00]} gxh4 {[%emt 0:00:00]} 46. gxh4 {
[%emt 0:00:00]} Kg4 {[%emt 0:00:00]} 47. Ka4 {[%emt 0:00:00]} Kxh4 {[%emt 0:00:
00]} 48. b5 {[%emt 0:00:00]} Ra8 {[%emt 0:00:00]} 49. b6 {[%emt 0:00:00]} Rb8 {
[%emt 0:00:00]} 50. Kb5 {[%emt 0:00:00]} Kg4 {[%emt 0:00:00]} 51. a6 {[%emt 0:
00:00]} h4 {[%emt 0:00:00]} 52. a7 {[%emt 0:00:00]} 1-0